lending/lending_fUSD_20240219
["ID","MTS","AMOUNT","RATE_DAILY","PERIOD"]
[314452375,1708362632470,-77.36820882,0.00036798,2]
[314452376,1708362632480,-1000.19471615,0.00036798,2]
[314452377,1708362632489,-400.0,0.00037298,2]
[314452378,1708362632499,-151.0,0.00037463,4]
[314452379,1708362632510,-154.88192845,0.00037567,2]
[314452380,1708362632519,-156.86,0.00037605,2]
[314452381,1708362632529,-373.63,0.00037679,2]
[314452382,1708362632538,-542.5773,0.000379,2]
[314452383,1708362632548,-1221.20818746,0.00038,120]
[314452384,1708362632557,-1000.19471615,0.00038011,2]
[314452385,1708362632567,-151.0,0.00038227,2]
[314452386,1708362632576,-150.0,0.00038356,2]
[314452387,1708362632585,-441.91,0.00038356,15]
[314452388,1708362632594,-1547.21234237,0.00038612,11]
[314452389,1708362632603,-6481.2747286,0.00038616,14]
[314452390,1708362632613,-4929.6404882,0.00038624,14]
[314452391,1708362632622,-103.0473838,0.00038625,2]
[314452418,1708362632979,-102.9526162,0.00038625,2]
[314452420,1708362632988,-154.88192845,0.00038683,2]
[314452422,1708362632998,-298.76591429,0.000387,9]
[314452432,1708362638288,-458.35866405,0.000387,9]
[314452433,1708362638299,-354.3976,0.000388,2]
[314452434,1708362638309,-1413.679,0.000388,2]
[314452435,1708362638318,-853.5885,0.000388,2]
[314452436,1708362638329,-14059.5353,0.000388,7]
[314452437,1708362638338,-1000.0,0.000388,2]
[314452438,1708362638348,-1055.9293492,0.000388,2]
[314452439,1708362638357,-769.56774036,0.00038898,4]
[314452440,1708362638367,-303.41266578,0.00038899,4]
[314452441,1708362638376,-17903.56776128,0.000389,3]
[314452442,1708362638400,-2931.7417946,0.000389,3]
[314452443,1708362638430,-517.19,0.000389,3]
[314452444,1708362638444,-88772.84187383,0.000389,3]
[314452445,1708362638453,-181.81,0.000389,3]
[314452446,1708362638463,-181.81,0.000389,3]
[314452447,1708362638473,-181.81,0.000389,3]
[314452448,1708362638483,-181.81,0.000389,3]
[314452449,1708362638493,-181.81,0.000389,3]
[314452450,1708362638503,-181.81,0.000389,3]
[314452451,1708362638513,-181.81,0.000389,3]
[314452452,1708362638523,-181.81,0.000389,3]
[314452453,1708362638532,-181.81,0.000389,3]
[314452454,1708362638542,-181.81,0.000389,3]
[314452455,1708362638551,-181.81,0.000389,3]
[314452456,1708362638561,-181.81,0.000389,3]
[314452457,1708362638570,-181.81,0.000389,3]
[314452458,1708362638580,-181.81,0.000389,3]
[314452459,1708362638589,-181.81,0.000389,3]
[314452460,1708362638599,-181.81,0.000389,3]
[314452461,1708362638609,-181.81,0.000389,3]
[314452462,1708362638618,-181.81,0.000389,3]
[314452463,1708362638872,-181.81,0.000389,3]
[314452464,1708362638882,-181.81,0.000389,3]
[314452465,1708362638891,-196.17528664,0.000389,20]
[314452466,1708362638900,-418.35836422,0.000389,2]
[314452467,1708362638909,-418.35836422,0.000389,2]
[314452468,1708362638918,-418.35836422,0.000389,2]
[314452469,1708362638927,-418.35836422,0.000389,2]
[314452470,1708362638939,-418.35836422,0.000389,2]
[314452471,1708362638950,-418.35836422,0.000389,2]
[314452472,1708362638959,-418.35836422,0.00038929,2]
[314452473,1708362638970,-1119.29277273,0.00038939,2]
[314452474,1708362638981,-1055.9293492,0.0003902,2]
[314452475,1708362638990,-150.0,0.000391,2]
[314452476,1708362639013,-418.35836422,0.00039147,2]
[314452477,1708362639035,-600.0,0.00039155,2]
[314452478,1708362639058,-1055.9293492,0.00039241,2]
[314452479,1708362639073,-163.27,0.0003926,2]
[314452480,1708362639083,-275.93388574,0.00039268,8]
[314452481,1708362639092,-335.38375276,0.00039273,30]
[314452482,1708362639101,-816.74363571,0.00039274,8]
[314452483,1708362639111,-408.37181786,0.00039274,8]
[314452484,1708362639120,-2354.86521605,0.00039281,8]
[314452485,1708362639129,-1177.43260802,0.00039281,8]
[314452486,1708362639138,-588.71630401,0.00039281,8]
[314452487,1708362639147,-167.1538896,0.00039288,8]
[314452488,1708362639157,-12900.79745342,0.000393,2]
[314452489,1708362639166,-418.35836422,0.00039365,2]
[314452490,1708362639175,-150.0,0.00039366,2]
[314452491,1708362639184,-1055.9293492,0.00039461,2]
[314452492,1708362639194,-1000.19471615,0.00039567,2]
[314452493,1708362639203,-418.35836422,0.00039582,2]
[314452494,1708362639213,-167.0,0.00039644,2]
[314452495,1708362639223,-791.43458822,0.00039671,2]
[314452496,1708362639233,-1055.9293492,0.00039681,2]
[314452497,1708362639247,-4392.0705866,0.00039689,13]
[314452498,1708362639256,-171.59016075,0.00039689,2]
[314452499,1708362639266,-178.0274411,0.00039689,2]
[314452500,1708362639275,-6002.45517161,0.00039726,2]
[314452501,1708362639285,-182.19,0.00039726,2]
[314452502,1708362639295,-1053.86240698,0.00039726,5]
[314452503,1708362639306,-67275.1589222,0.00039769,5]
[314452504,1708362639315,-134550.317844,0.00039771,5]
[314452505,1708362639325,-221.05970928,0.00039771,2]
[314452506,1708362639335,-155.0,0.00039779,4]
[314452507,1708362639345,-74168.29469035,0.00039779,2]
[314452508,1708362639354,-335.38375276,0.00039779,30]
[314452509,1708362639364,-335.38375276,0.0003978,30]
[314452510,1708362639373,-36487.0756573,0.00039781,7]
[314452511,1708362639382,-212604.499533,0.00039781,7]
[314452512,1708362639391,-193.22028902,0.00039789,13]
[314452513,1708362639400,-134550.317844,0.0003979,6]
[314452514,1708362639410,-601.38607559,0.00039798,4]
[314452515,1708362639420,-156.17259878,0.00039798,4]
[314452516,1708362639429,-2162.7183006,0.000398,7]
[314452517,1708362639439,-154.88192845,0.000398,2]
[314452518,1708362639449,-1081.52360714,0.000398,2]
[314452519,1708362639459,-5000.0,0.000398,3]
[314452520,1708362639468,-274295.15191308,0.000398,10]
[314452521,1708362639478,-418.35836422,0.000398,2]
[314452522,1708362639488,-67275.1589222,0.0003986,6]
[314452523,1708362639497,-67275.1589222,0.0003987,6]
[314452524,1708362639507,-335.38375276,0.00039879,30]
[314452525,1708362639516,-335.38375276,0.00039879,30]
[314452526,1708362639526,-67275.1589222,0.0003988,6]
[314452527,1708362639535,-335.38375276,0.00039889,30]
[314452528,1708362639545,-250.0,0.00039889,2]
[314452529,1708362639554,-150.0,0.00039889,2]
[314452530,1708362639564,-300.0,0.00039889,7]
[314452531,1708362639574,-450.0,0.00039889,12]
[314452532,1708362639583,-600.0,0.00039889,17]
[314452533,1708362639591,-162.65011872,0.00039889,31]
[314452534,1708362639600,-67275.1589222,0.0003989,6]
[314452535,1708362639609,-221.05970928,0.0003989,2]
[314452536,1708362639618,-221.05970928,0.0003989,2]
[314452537,1708362639627,-4927.0,0.0003989,4]
[314452538,1708362639636,-281.69798841,0.00039899,4]
[314452539,1708362639646,-335.38375276,0.00039899,30]
[314452540,1708362639655,-335.38375273,0.00039899,30]
[314452541,1708362639664,-65619.93015632,0.000399,3]
[314452542,1708362639673,-1652894.40883241,0.000399,3]
[314452543,1708362639682,-358.26,0.000399,7]
[314452544,1708362639692,-697.24280412,0.000399,2]
[314452545,1708362639701,-15681.42689096,0.000399,2]
[314452546,1708362639710,-2292.0,0.00039925,2]
[314452547,1708362639719,-8171.0,0.00039925,2]
[314452548,1708362639728,-19865.0,0.00039925,2]
[314452549,1708362639737,-4732.822,0.00039925,2]
[314452550,1708362639746,-4102.0,0.00039925,2]
[314452551,1708362639755,-2924.0,0.00039925,2]
[314452552,1708362639764,-757.1245783,0.00039928,9]
[314452553,1708362639774,-373.63,0.00039943,2]
[314452554,1708362639783,-1259.98996334,0.0003998,3]
[314452555,1708362639792,-1000.0,0.00039989,2]
[314452556,1708362639801,-1127.02913656,0.00039989,4]
[314452557,1708362639811,-565.37,0.0003999,3]
[314452558,1708362639820,-300.0,0.00039999,2]
[314452559,1708362639829,-300.0,0.00039999,2]
[314452560,1708362639839,-300.0,0.00039999,2]
[314452561,1708362639848,-300.0,0.00039999,2]
[314452562,1708362639857,-300.0,0.00039999,2]
[314452563,1708362639866,-300.0,0.00039999,2]
[314452564,1708362639875,-300.0,0.00039999,2]
[314452565,1708362639884,-321.45276217,0.00039999,2]
[314452566,1708362639893,-664.69780361,0.0004,10]
[314452567,1708362639902,-1176.21563875,0.0004,30]
[314452568,1708362639911,-255.0,0.0004,12]
[314452569,1708362639920,-2691.0,0.00040314,2]
[314452570,1708362639930,-1867.0,0.00040314,2]
[314452571,1708362639939,-164.177,0.00040314,2]
[314452572,1708362639950,-842.0,0.00040314,2]
[314452573,1708362639959,-1231.0,0.00040314,2]
[314452574,1708362639969,-598.0,0.00040314,2]
[314452575,1708362639978,-1948.0,0.00040314,2]
[314452576,1708362639987,-1255.0,0.00040314,2]
[314452577,1708362639996,-274.794,0.00040314,2]
[314452578,1708362640005,-1005.0,0.00040314,2]
[314452579,1708362640015,-276.0,0.00040314,2]
[314452580,1708362640024,-429.0,0.00040314,2]
[314452581,1708362640034,-858.0,0.00040314,2]
[314452582,1708362640043,-321.0,0.00040314,2]
[314452583,1708362640053,-150.0,0.00040314,2]
[314452584,1708362640062,-337.0,0.00040314,2]
[314452585,1708362640072,-1138.0,0.00040314,2]
[314452586,1708362640081,-2887.0,0.00040314,2]
[314452587,1708362640090,-454.0,0.00040314,2]
[314452588,1708362640100,-308.434,0.00040314,2]
[314452589,1708362640109,-150.0,0.00040375,2]
[314452590,1708362640118,-4392.0705866,0.00040406,14]
[314452591,1708362640127,-22229.1928,0.0004044,2]
[314452592,1708362640136,-694.985703,0.000405,17]
[314452593,1708362640145,-178.0274411,0.00040518,2]
[314452594,1708362640155,-1014.0,0.0004059,7]
[314452595,1708362640165,-243.0,0.0004059,7]
[314452596,1708362640174,-202.7,0.000406,7]
[314452597,1708362640183,-200.0,0.00040608,7]
[314452598,1708362640194,-200.0,0.00040608,7]
[314452599,1708362640203,-20000.0,0.00040615,2]
[314452600,1708362640212,-1275172.77745586,0.00040615,7]
[314452601,1708362640244,-1044.2,0.00040615,7]
[314452602,1708362640261,-5799.91904006,0.00040615,7]
[314452603,1708362640274,-25292.88082458,0.00040615,7]
[314452604,1708362640637,-652.44678786,0.00040615,7]
[314452606,1708362640658,-291.2,0.00040615,7]
[314452607,1708362641313,-2357.33740939,0.00040615,7]
[314452608,1708362641344,-260.682,0.00040615,7]
[314452609,1708362641768,-2885.42407161,0.00040615,7]
[314452610,1708362641782,-5168.0,0.00040615,7]
[314452615,1708362643443,-3719.91227794,0.00040615,7]
[314452616,1708362643455,-1162.73174656,0.00040615,7]
[314452617,1708362643466,-2812.31254822,0.00040615,7]
[314452618,1708362643478,-1370.0464894,0.00040615,7]
[314452619,1708362643489,-24386.35196705,0.00040615,7]
[314452620,1708362643501,-2185.09629554,0.00040615,7]
[314452621,1708362643512,-1037.92,0.00040615,7]
[314452622,1708362643541,-123888.94543279,0.00040615,7]
[314452623,1708362643931,-290506.03464671,0.00040615,7]
[314452624,1708362643945,-25408.43422194,0.00040615,7]
[314452625,1708362643977,162.0,0.00033,2]
[314452626,1708362643994,-868599.99999526,0.00040615,7]
[314452627,1708362644020,-945.26316887,0.00040615,7]
[314452641,1708362646898,-7.79375817,0.00039803,5]
[314452642,1708362647010,-258.4997367,0.00039803,5]
[314452643,1708362647122,-834.00435501,0.00039803,5]
[314452644,1708362647131,-144465.99564499,0.00040615,7]
[314452645,1708362647142,-5679.49160659,0.00040615,7]
[314452646,1708362647153,-2904.80000002,0.00040615,7]
[314452647,1708362647164,-1470.07918115,0.00040615,7]
[314452648,1708362647193,-10977.6972589,0.00040615,7]
[314452649,1708362647207,-2582.75,0.00040615,7]
[314452653,1708362685797,2060.0,0.00035,3]
[314452655,1708363628138,-550.0,0.00025,3]
[314452656,1708363628160,-600.0,0.00027,3]
[314452657,1708363628180,-387.94777423,0.00028999,2]
[314452658,1708363645107,-3780.05222577,0.00028999,2]
[314452659,1708363645129,-650.0,0.00029,3]
[314452660,1708363645149,-270.86,0.00029726,2]
[314452661,1708363645171,-700.0,0.00031,3]
[314452662,1708363645192,-514.89739082,0.000315,2]
[314452663,1708363645213,-150.0,0.00032899,3]
[314452664,1708363645233,-2642.324,0.000329,2]
[314452665,1708363645254,-750.0,0.00033,3]
[314452666,1708363645274,-378.43,0.00034849,2]
[314452667,1708363645294,-167.73686614,0.00035,2]
[314452668,1708363645316,-800.0,0.00035,3]
[314452669,1708363645335,-1744.82,0.00035,2]
[314452670,1708363645354,-426.09822708,0.00035,2]
[314452671,1708363654111,-21.67177292,0.00035,2]
[314452672,1708363654131,-2056.0,0.00035,3]
[314452673,1708363654152,-5254.17776817,0.000351,3]
[314452675,1708363831385,-150.0,0.00035065,2]
[314452676,1708363831395,-400.0,0.00035099,3]
[314452677,1708363831405,-150.0,0.00035099,2]
[314452678,1708363831414,-11129.82223183,0.000351,3]
[314452679,1708363831426,-205.0,0.00035625,2]
[314452680,1708363831436,-185.0,0.00036,2]
[314452681,1708363831446,-850.0,0.00037,3]
[314452682,1708363831456,-378.43,0.00037113,2]
[314452683,1708363831467,-151.0,0.00037145,4]
[314452684,1708363831479,-1000.0,0.00037192,2]
[314452685,1708363831488,-28335.03,0.00037394,2]
[314452686,1708363831498,-173.63888449,0.00037394,2]
[314452687,1708363831508,-209.97,0.00037477,2]
[314452688,1708363831518,-176.45,0.00037541,2]
[314452689,1708363831528,-2000.0,0.00037581,2]
[314452690,1708363831537,-167.73686612,0.00037629,2]
[314452691,1708363831547,-150.1,0.000378,2]
[314452692,1708363831556,-151.0,0.00037903,2]
[314452693,1708363831567,-162.0,0.00038,2]
[314452694,1708363831577,-205.0,0.00038334,8]
[314452695,1708363831587,-479.56,0.00038356,15]
[314452696,1708363831596,-150.0,0.00038356,2]
[314452697,1708363831609,-5600.0,0.00038393,4]
[314452698,1708363831618,-166.32,0.00038394,2]
[314452699,1708363831627,-14150.3693,0.00038399,2]
[314452700,1708363831636,-30063.5775,0.00038499,2]
[314452701,1708363831646,-2256.96,0.00038503,2]
[314452702,1708363831655,-21155.74647531,0.00038504,2]
[314452712,1708363837359,-1658.78632469,0.00038504,2]
[314452713,1708363837369,-191.54,0.00038571,2]
[314452714,1708363837380,-1673.1269,0.00038598,2]
[314452715,1708363837389,-2311.50632163,0.00038598,2]
[314452716,1708363837582,-2372.55417837,0.00038598,2]
[314452717,1708363837592,-3355.28152712,0.00038599,11]
[314452718,1708363837602,-3084.33770423,0.00038599,13]
[314452719,1708363837613,-1340.85895554,0.00038599,12]
[314452720,1708363837622,-4699.62937993,0.00038604,14]
[314452721,1708363837631,-210.0,0.00038609,4]
[314452722,1708363837640,-162.0,0.0003863,14]
[314452723,1708363837651,-556.88,0.0003864,2]
[314452724,1708363837661,-15049.6553,0.00038698,2]
[314452725,1708363837672,-548.36818583,0.000387,2]
[314452726,1708363837682,-200.0,0.00038787,3]
[314452727,1708363837691,-28538.97308203,0.00038798,2]
[314452728,1708363837700,-153.12,0.000389,3]
[314452729,1708363837712,-153.12,0.000389,3]
[314452730,1708363837722,-153.12,0.000389,3]
[314452731,1708363837731,-153.12,0.000389,3]
[314452732,1708363837740,-153.12,0.000389,3]
[314452733,1708363837750,-153.12,0.000389,3]
[314452734,1708363837759,-153.12,0.000389,3]
[314452735,1708363837769,-153.12,0.000389,3]
[314452736,1708363837779,-153.12,0.000389,3]
[314452737,1708363837788,-153.12,0.000389,3]
[314452738,1708363837797,-153.12,0.000389,3]
[314452739,1708363837807,-153.12,0.000389,3]
[314452740,1708363837816,-153.12,0.000389,3]
[314452741,1708363837825,-153.12,0.000389,3]
[314452742,1708363837835,-153.12,0.000389,3]
[314452743,1708363837844,-153.12,0.000389,3]
[314452744,1708363837854,-153.12,0.000389,3]
[314452745,1708363837863,-153.12,0.000389,3]
[314452746,1708363837873,-153.12,0.000389,3]
[314452747,1708363837882,-188.26126404,0.000389,2]
[314452748,1708363837891,-900.0,0.00039,3]
[314452749,1708363837900,-150.0,0.000391,2]
[314452750,1708363837909,-260.110855,0.0003914,2]
[314452751,1708363837918,-188.2612639,0.00039158,2]
[314452752,1708363837927,-38308.0,0.00039244,2]
[314452753,1708363837936,-163.27,0.0003926,2]
[314452754,1708363837945,-248.34049716,0.000393,8]
[314452755,1708363837954,-177.00946546,0.000393,8]
[314452756,1708363837966,-1059.68934722,0.00039314,8]
[314452757,1708363837975,-529.84467361,0.00039314,8]
[314452758,1708363837984,-252.61086644,0.0003932,8]
[314452759,1708363837993,-150.0,0.00039366,2]
[314452760,1708363838002,-378.43,0.00039377,2]
[314452761,1708363838011,-209.97,0.00039426,2]
[314452762,1708363838020,-188.2612639,0.00039515,2]
[314452763,1708363838029,-1000.0,0.000396,2]
[314452764,1708363838038,-1032.5722,0.00039626,2]
[314452765,1708363838047,-24029.6788,0.00039626,2]
[314452766,1708363838055,-1386.4297,0.00039626,2]
[314452767,1708363838064,-4331.8978,0.000397,2]
[314452768,1708363838073,-617.3,0.000397,2]
[314452769,1708363838082,-662.48400603,0.000397,9]
[314452770,1708363838092,-751.86285879,0.00039703,2]
[314452771,1708363838100,-1048.09279878,0.00039724,2]
[314452772,1708363838109,-155.0,0.00039725,4]
[314452773,1708363838118,-12975.08736648,0.00039725,4]
[314452774,1708363838128,-41840.7421553,0.00039726,2]
[314452775,1708363838136,-72011.30631035,0.000398,10]
[314452776,1708363838299,-1621.25370687,0.000398,10]
[314452777,1708363840720,-140.93841819,0.00038599,14]
[314452778,1708363840746,-287.8885,0.00038599,14]
[314452779,1708363840760,-372.54736393,0.00038599,14]
[314452780,1708363840771,-1484.00688535,0.00038599,14]
[314452781,1708363840780,-76.00111465,0.000398,10]
[314452782,1708363840939,-52484.70301858,0.000398,10]
[314452862,1708363842340,-13.34614247,0.000398,10]
[314452863,1708363842452,-287.43137398,0.000398,10]
[314452864,1708363842581,-65512.56467225,0.000398,10]
[314452865,1708363842590,-1098.44125141,0.00039803,5]
[314452866,1708363842599,-1013.05953029,0.00039803,5]
[314452867,1708363842609,-160.4,0.00039849,2]
[314452868,1708363842618,-188.2612639,0.00039873,2]
[314452869,1708363842627,-200.0,0.00039876,3]
[314452870,1708363842637,-1000.0,0.00039889,2]
[314452871,1708363842646,-1127.02913656,0.00039889,4]
[314452872,1708363842657,-300.0,0.00039899,2]
[314452873,1708363842666,-300.0,0.00039899,2]
[314452874,1708363842676,-300.0,0.00039899,2]
[314452875,1708363842850,-300.0,0.00039899,2]
[314452876,1708363842863,-300.0,0.00039899,2]
[314452877,1708363842872,-300.0,0.00039899,2]
[314452878,1708363842882,-300.0,0.00039899,2]
[314452879,1708363842891,-321.45276217,0.00039899,2]
[314452880,1708363842901,-255.0,0.0004,12]
[314452881,1708363842910,-255.0,0.0004,12]
[314452882,1708363842918,-255.0,0.0004,12]
[314452883,1708363842927,-71453.39675157,0.0004,25]
[314452884,1708363842936,-255.0,0.0004,12]
[314452885,1708363842946,-255.0,0.0004,12]
[314452886,1708363842955,-255.0,0.0004,12]
[314452887,1708363842965,-188.2612639,0.0004023,2]
[314452888,1708363842974,-167.73686612,0.00040257,2]
[314452889,1708363842983,-162.0,0.00040274,14]
[314452890,1708363842993,-180.0,0.00040337,2]
[314452891,1708363843002,-150.0,0.00040375,2]
[314452892,1708363843011,-200.0,0.00040404,4]
[314452893,1708363843020,-1005.0,0.00040445,2]
[314452894,1708363843029,-276.0,0.00040445,2]
[314452895,1708363843038,-858.0,0.00040445,2]
[314452896,1708363843047,-429.0,0.00040445,2]
[314452897,1708363843056,-337.0,0.00040445,2]
[314452898,1708363843065,-321.0,0.00040445,2]
[314452899,1708363843074,-2887.0,0.00040445,2]
[314452900,1708363843083,-150.0,0.00040445,2]
[314452902,1708363843093,-1138.0,0.00040445,2]
[314452904,1708363843102,-308.434,0.00040445,2]
[314452906,1708363843111,-454.0,0.00040445,2]
[314452908,1708363843121,-19865.0,0.00040445,2]
[314452910,1708363843130,-2924.0,0.00040445,2]
[314452912,1708363843140,-2292.0,0.00040445,2]
[314452914,1708363843150,-3117.864,0.00040445,2]
[314452916,1708363843159,-1867.0,0.00040445,2]
[314452918,1708363843168,-2691.0,0.00040445,2]
[314452920,1708363843178,-8171.0,0.00040445,2]
[314452922,1708363843187,-4102.0,0.00040445,2]
[314452924,1708363843196,-4732.822,0.00040445,2]
[314452926,1708363843205,-164.177,0.00040445,2]
[314452928,1708363843216,-842.0,0.00040445,2]
[314452929,1708363843225,-1255.0,0.00040445,2]
[314452931,1708363843234,-1231.0,0.00040445,2]
[314452933,1708363843244,-598.0,0.00040445,2]
[314452935,1708363843254,-1948.0,0.00040445,2]
[314452936,1708363843263,-274.794,0.00040445,2]
[314452937,1708363843273,-1259.98996334,0.00040496,4]
[314452938,1708363843282,-171.59016075,0.00040505,2]
[314452939,1708363843291,-4278.95279239,0.00040505,14]
[314452940,1708363843300,-178.0274411,0.00040505,2]
[314452941,1708363843310,-210.0,0.00040505,2]
[314452942,1708363843319,-188.2612639,0.00040588,2]
[314452943,1708363843328,-5442.61254324,0.0004059,10]
[314452944,1708363843337,-81278.6642166,0.0004059,6]
[314452945,1708363843346,-403.0,0.0004059,7]
[314452946,1708363843356,-150.0,0.000406,44]
[314452947,1708363843365,-694.985703,0.000406,17]
[314452948,1708363843374,-214679.54049505,0.00040602,7]
[314452949,1708363843500,-4348.72939482,0.00040602,7]
[314452950,1708363843511,-1783.43896783,0.00040602,7]
[314452951,1708363843522,-9030.79614252,0.00040602,7]
[314452952,1708363843534,-982.60344338,0.00040602,7]
[314452953,1708363843543,-41554.63984769,0.00040602,7]
[314452956,1708363845741,-3e-08,0.00040602,7]
[314452957,1708363845754,-71435.36015228,0.00040602,7]
[314452958,1708363845763,-609.93581584,0.00040602,30]
[314452959,1708363845773,-1586.356122,0.00040602,30]
[314452960,1708363845782,-25501.23639005,0.00040602,30]
[314452961,1708363845791,-238.560631,0.00040602,30]
[314452962,1708363845800,-1991.917289,0.00040602,30]
[314452963,1708363845810,-1137.37989133,0.00040602,2]
[314452964,1708363845819,-155.64402528,0.00040602,60]
[314452965,1708363845829,-155.64402528,0.00040602,60]
[314452966,1708363845839,-540.38602,0.00040615,5]
[314452967,1708363845848,-200.0,0.00040629,7]
[314452968,1708363845857,-200.0,0.00040629,7]
[314452969,1708363845867,-200.0,0.00040629,7]
[314452970,1708363845876,-200.0,0.00040629,7]
[314452971,1708363845885,-200.0,0.00040629,7]
[314452972,1708363845894,-200.0,0.00040629,7]
[314452973,1708363845903,-200.0,0.00040629,7]
[314452974,1708363845912,-200.0,0.00040629,7]
[314452975,1708363845921,-200.0,0.00040629,7]
[314452976,1708363845930,-200.0,0.00040629,7]
[314452977,1708363845940,-152.97961143,0.0004078,9]
[314452978,1708363845949,-830.6925024,0.000408,3]
[314452979,1708363845958,-160.4,0.00040845,2]
[314452980,1708363845969,-174.0,0.00040848,7]
[314452981,1708363845978,-1150.45869317,0.00040866,2]
[314452982,1708363845987,-1790.0,0.0004089,2]
[314452983,1708363845996,-319.96,0.000409,2]
[314452984,1708363846005,-662.48400601,0.00040942,10]
[314452985,1708363846014,-188.2612639,0.00040945,2]
[314452986,1708363846023,-81278.6642166,0.0004096,6]
[314452987,1708363846032,-162557.328433,0.0004097,6]
[314452988,1708363846041,-365289.8012171,0.0004098,2]
[314452989,1708363846050,-174.0,0.00040985,7]
[314452990,1708363846059,-200.0,0.00040987,11]
[314452991,1708363846068,-950.0,0.00041,3]
[314452992,1708363846077,-205.0,0.00041042,14]
[314452993,1708363846086,-152.0,0.00041063,3]
[314452994,1708363846095,-183.0,0.00041096,2]
[314452995,1708363846104,-153.12,0.000411,4]
[314452996,1708363846113,-153.12,0.000411,4]
[314452997,1708363846122,-153.12,0.000411,4]
[314452998,1708363846131,-153.12,0.000411,4]
[314452999,1708363846140,-153.12,0.000411,4]
[314453000,1708363846150,-153.12,0.000411,4]
[314453001,1708363846159,-153.12,0.000411,4]
[314453002,1708363846168,-153.12,0.000411,4]
[314453003,1708363846177,-153.12,0.000411,4]
[314453004,1708363846186,-153.12,0.000411,4]
[314453005,1708363846195,-153.12,0.000411,4]
[314453006,1708363846205,-153.12,0.000411,4]
[314453007,1708363846214,-153.12,0.000411,4]
[314453008,1708363846223,-153.12,0.000411,4]
[314453009,1708363846232,-153.12,0.000411,4]
[314453010,1708363846241,-153.12,0.000411,4]
[314453011,1708363846251,-153.12,0.000411,4]
[314453012,1708363846260,-153.12,0.000411,4]
[314453013,1708363846270,-153.12,0.000411,4]
[314453014,1708363846279,-4278.95279238,0.00041222,15]
[314453015,1708363846287,-751.86285876,0.00041282,5]
[314453016,1708363846297,-188.2612639,0.00041303,2]
[314453017,1708363846306,-1098.54923741,0.00041348,5]
[314453018,1708363846315,-156.86,0.00041366,2]
[314453019,1708363846324,-150.0,0.00041384,2]
[314453020,1708363846334,-1000.0,0.000416,2]
[314453021,1708363846343,-1000.0,0.000416,6]
[314453022,1708363846352,-814.6,0.0004163,2]
[314453023,1708363846362,-378.43,0.00041641,2]
[314453024,1708363846371,-188.2612639,0.0004166,2]
[314453025,1708363846381,-3466.30901659,0.000417,7]
[314453026,1708363846390,-200.0,0.00041791,7]
[314453027,1708363846399,-830.6925024,0.000418,3]
[314453028,1708363846409,-1000.0,0.00041841,2]
[314453029,1708363846418,-160.4,0.00041842,2]
[314453030,1708363846427,-4278.95279238,0.00041939,16]
[314453031,1708363846437,-1429.859308,0.0004194,18]
[314453032,1708363846446,-1000.0,0.0004196,18]
[314453033,1708363846456,-1000.0,0.0004198,18]
[314453034,1708363846467,-200.0,0.00041987,13]
[314453035,1708363846476,-81278.6642166,0.0004199,8]
[314453036,1708363846486,-189.0,0.0004199,2]
[314453037,1708363846495,-58000.0,0.00042,5]
[314453038,1708363846504,-174.2708,0.00042,59]
[314453039,1708363846513,-347.14707949,0.00042,4]
[314453040,1708363846523,-20723.65251409,0.00042,2]
[314453041,1708363846532,-1287.3593,0.00042,59]